fUSD/lending_fUSD_20240404
["ID","MTS","AMOUNT","RATE_DAILY","PERIOD"]
[321435563,1712190653049,-151.0,0.00049315,120]
[321435564,1712190653058,-151.0,0.00049315,120]
[321435565,1712190653071,-151.0,0.00049315,120]
[321435566,1712190653081,-151.0,0.00049315,120]
[321435567,1712190653090,-151.0,0.00049315,120]
[321435568,1712190653099,-292.133939,0.00049315,120]
[321435569,1712190653109,-151.0,0.00049315,120]
[321435570,1712190653118,-204.897764,0.00049315,120]
[321435571,1712190653128,-292.133939,0.00049315,120]
[321435572,1712190653137,-292.133939,0.00049315,120]
[321435573,1712190653147,-292.133939,0.00049315,120]
[321435574,1712190653157,-292.133939,0.00049315,120]
[321435575,1712190653167,-292.133939,0.00049315,120]
[321435576,1712190653177,-292.133939,0.00049315,120]
[321435577,1712190653186,-292.133939,0.00049315,120]
[321435578,1712190653194,-292.133939,0.00049315,120]
[321435579,1712190653204,-292.133939,0.00049315,120]
[321435580,1712190653213,-151.0,0.00049315,120]
[321435581,1712190653222,-151.0,0.00049315,120]
[321435582,1712190653231,-151.0,0.00049315,120]
[321435583,1712190653242,-151.0,0.00049315,120]
[321435584,1712190653251,-151.0,0.00049315,120]
[321435585,1712190653262,-461.388181,0.00049315,120]
[321435586,1712190653271,-461.388181,0.00049315,120]
[321435587,1712190653280,-461.388181,0.00049315,120]
[321435588,1712190653289,-461.388181,0.00049315,120]
[321435589,1712190653301,-461.388181,0.00049315,120]
[321435590,1712190653312,-461.388181,0.00049315,120]
[321435591,1712190653323,-461.388181,0.00049315,120]
[321435592,1712190653332,-461.388181,0.00049315,120]
[321435593,1712190653341,-461.388181,0.00049315,120]
[321435594,1712190653351,-151.0,0.00049315,120]
[321435595,1712190653359,-461.388181,0.00049315,120]
[321435596,1712190653369,-151.0,0.00049315,120]
[321435597,1712190653378,-151.0,0.00049315,120]
[321435598,1712190653387,-151.0,0.00049315,120]
[321435599,1712190653397,-151.0,0.00049315,120]
[321435600,1712190653406,-251.683093,0.00049315,7]
[321435601,1712190653416,-251.683093,0.00049315,7]
[321435602,1712190653425,-251.683093,0.00049315,7]
[321435603,1712190653434,-151.0,0.00049315,120]
[321435604,1712190653444,-251.683093,0.00049315,7]
[321435605,1712190653454,-151.0,0.00049315,120]
[321435606,1712190653463,-251.683093,0.00049315,7]
[321435607,1712190653472,-153.078926,0.00049315,120]
[321435608,1712190653482,-251.683093,0.00049315,7]
[321435609,1712190653491,-251.683093,0.00049315,7]
[321435610,1712190653501,-251.683093,0.00049315,7]
[321435611,1712190653510,-251.683093,0.00049315,7]
[321435612,1712190653520,-251.683093,0.00049315,7]
[321435613,1712190653529,-151.0,0.00049315,120]
[321435614,1712190653538,-151.0,0.00049315,120]
[321435615,1712190653547,-152.338261,0.00049315,120]
[321435616,1712190653556,-259.121772,0.00049315,120]
[321435617,1712190653565,-162.522381,0.00049315,120]
[321435618,1712190653575,-259.121772,0.00049315,120]
[321435619,1712190653584,-162.522381,0.00049315,120]
[321435620,1712190653593,-162.522381,0.00049315,120]
[321435621,1712190653602,-259.121772,0.00049315,120]
[321435622,1712190653612,-259.121772,0.00049315,120]
[321435623,1712190653622,-162.522381,0.00049315,120]
[321435624,1712190653632,-259.121772,0.00049315,120]
[321435625,1712190653642,-162.522381,0.00049315,120]
[321435626,1712190653653,-162.522381,0.00049315,120]
[321435627,1712190653663,-259.121772,0.00049315,120]
[321435628,1712190653674,-162.522381,0.00049315,120]
[321435629,1712190653683,-259.121772,0.00049315,120]
[321435630,1712190653693,-152.877723,0.00049315,120]
[321435631,1712190653704,-162.522381,0.00049315,120]
[321435632,1712190653715,-259.121772,0.00049315,120]
[321435633,1712190653725,-162.522381,0.00049315,120]
[321435634,1712190653735,-259.121772,0.00049315,120]
[321435635,1712190653747,-162.522381,0.00049315,120]
[321435636,1712190653756,-259.121772,0.00049315,120]
[321435637,1712190653767,-151.0,0.00049315,120]
[321435638,1712190653777,-151.0,0.00049315,120]
[321435639,1712190653787,-151.0,0.00049315,120]
[321435640,1712190653797,-151.0,0.00049315,120]
[321435641,1712190653807,-151.0,0.00049315,120]
[321435642,1712190653818,-151.0,0.00049315,120]
[321435643,1712190653828,-151.0,0.00049315,120]
[321435644,1712190653838,-151.0,0.00049315,120]
[321435645,1712190653848,-151.0,0.00049315,120]
[321435646,1712190653858,-151.0,0.00049315,120]
[321435647,1712190653868,-151.0,0.00049315,120]
[321435648,1712190653879,-151.0,0.00049315,120]
[321435649,1712190653889,-151.0,0.00049315,120]
[321435650,1712190653899,-151.0,0.00049315,120]
[321435651,1712190653909,-151.0,0.00049315,120]
[321435652,1712190653919,-151.0,0.00049315,120]
[321435653,1712190653930,-151.0,0.00049315,120]
[321435654,1712190653940,-151.0,0.00049315,120]
[321435655,1712190653950,-151.0,0.00049315,120]
[321435656,1712190653960,-157.731152,0.00049315,120]
[321435657,1712190653970,-151.0,0.00049315,120]
[321435658,1712190653980,-195.828944,0.00049315,120]
[321435659,1712190653990,-202.94166,0.00049315,120]
[321435660,1712190654000,-151.0,0.00049315,120]
[321435661,1712190654010,-151.0,0.00049315,120]
[321435662,1712190654020,-151.0,0.00049315,120]
[321435663,1712190654030,-151.0,0.00049315,120]
[321435664,1712190654042,-151.0,0.00049315,120]
[321435665,1712190654052,-152.264759,0.00049315,120]
[321435666,1712190654063,-151.0,0.00049315,120]
[321435667,1712190654075,-151.0,0.00049315,120]
[321435668,1712190654085,-151.0,0.00049315,120]
[321435669,1712190654095,-151.0,0.00049315,120]
[321435670,1712190654107,-275.490233,0.00049315,120]
[321435671,1712190654117,-151.0,0.00049315,120]
[321435672,1712190654128,-151.0,0.00049315,120]
[321435673,1712190654139,-151.0,0.00049315,120]
[321435674,1712190654151,-151.0,0.00049315,120]
[321435675,1712190654160,-151.0,0.00049315,120]
[321435676,1712190654170,-150.0,0.00049315,2]
[321435677,1712190654181,-197.38677701,0.00049331,30]
[321435678,1712190654192,-151.29625457,0.00049332,30]
[321435679,1712190654202,-153.63115965,0.00049346,30]
[321435680,1712190654212,-153.63115965,0.00049347,30]
[321435681,1712190654222,-291.67523411,0.00049368,30]
[321435682,1712190654232,-151.0,0.0004937,120]
[321435683,1712190654242,-291.67523411,0.00049412,30]
[321435684,1712190654254,-228666.80371101,0.0004949,15]
[321435685,1712190654265,-203.19613583,0.00049496,30]
[321435686,1712190654276,-1153.99,0.000495,7]
[321435687,1712190654287,-5024.82841,0.000495,30]
[321435688,1712190654298,-150.0,0.000495,10]
[321435689,1712190654307,-203.19613583,0.00049518,30]
[321435690,1712190654318,-155.01816656,0.00049522,30]
[321435691,1712190654330,-176.26740746,0.00049581,30]
[321435692,1712190654340,-291.67523411,0.00049584,30]
[321435693,1712190654350,-900.0,0.00049588,90]
[321435694,1712190654360,-1100.0,0.00049588,90]
[321435695,1712190654370,-500.0,0.00049588,90]
[321435696,1712190654380,-155.66052387,0.0004959,120]
[321435697,1712190654390,-155.66052387,0.0004959,120]
[321435698,1712190654399,-155.66052387,0.0004959,120]
[321435699,1712190654409,-155.66052387,0.0004959,120]
[321435700,1712190654419,-155.66052387,0.0004959,120]
[321435701,1712190654428,-155.66052387,0.0004959,120]
[321435702,1712190654438,-155.66052387,0.0004959,120]
[321435703,1712190654447,-155.66052387,0.0004959,120]
[321435704,1712190654457,-155.66052387,0.0004959,120]
[321435705,1712190654468,-155.66052387,0.0004959,120]
[321435706,1712190654478,-155.66052387,0.0004959,120]
[321435707,1712190654487,-155.66052387,0.0004959,120]
[321435708,1712190654496,-155.66052387,0.0004959,120]
[321435709,1712190654506,-155.66052387,0.0004959,120]
[321435710,1712190654516,-155.66052387,0.0004959,120]
[321435711,1712190654526,-155.66052387,0.0004959,120]
[321435712,1712190654537,-156.16,0.0004959,120]
[321435713,1712190654546,-8088.94,0.000496,6]
[321435714,1712190654557,-8088.94,0.000496,6]
[321435715,1712190654566,-8088.94,0.000496,6]
[321435716,1712190654578,-8088.94,0.000496,6]
[321435717,1712190654587,-8088.94,0.000496,6]
[321435718,1712190654597,-8088.94,0.000496,6]
[321435719,1712190654607,-8088.94,0.000496,6]
[321435720,1712190654618,-8088.94,0.000496,6]
[321435721,1712190654628,-8088.94,0.000496,6]
[321435722,1712190654638,-8088.94,0.000496,6]
[321435723,1712190654647,-8088.94,0.000496,6]
[321435724,1712190654658,-8088.94,0.000496,6]
[321435725,1712190654667,-8088.94,0.000496,6]
[321435726,1712190654677,-8088.94,0.000496,6]
[321435727,1712190654686,-8088.94,0.000496,6]
[321435728,1712190654696,-8088.94,0.000496,6]
[321435729,1712190654706,-8088.94,0.000496,6]
[321435730,1712190654716,-8088.94,0.000496,6]
[321435731,1712190654726,-8088.94,0.000496,6]
[321435732,1712190654737,-8088.94,0.000496,6]
[321435733,1712190654747,-279.529622,0.000496,14]
[321435734,1712190654756,-279.529622,0.000496,14]
[321435735,1712190654766,-340.368361,0.000496,120]
[321435736,1712190654776,-340.368361,0.000496,120]
[321435737,1712190654786,-353.623815,0.000496,120]
[321435738,1712190654797,-353.623815,0.000496,120]
[321435739,1712190654807,-151.0,0.000496,120]
[321435740,1712190654818,-185.086166,0.000496,120]
[321435741,1712190654831,-185.086166,0.000496,120]
[321435742,1712190654840,-155.240149,0.000496,120]
[321435743,1712190654851,-151.0,0.000496,120]
[321435744,1712190654862,-198.553883,0.000496,120]
[321435745,1712190654871,-198.553883,0.000496,120]
[321435746,1712190654882,-337.817331,0.000496,120]
[321435747,1712190654892,-337.817331,0.000496,120]
[321435748,1712190654904,-749.789279,0.000496,30]
[321435749,1712190654914,-749.789279,0.000496,30]
[321435750,1712190654923,-193.436429,0.000496,120]
[321435751,1712190654933,-193.436429,0.000496,120]
[321435752,1712190654942,-223.122363,0.000496,120]
[321435753,1712190654951,-223.122363,0.000496,120]
[321435754,1712190654961,-151.0,0.000496,120]
[321435755,1712190654971,-151.0,0.000496,120]
[321435756,1712190654980,-360.206481,0.000496,120]
[321435757,1712190654991,-360.206481,0.000496,120]
[321435758,1712190655001,-288.132434,0.000496,120]
[321435759,1712190655011,-288.132434,0.000496,120]
[321435760,1712190655021,-151.0,0.000496,120]
[321435761,1712190655030,-578.359478,0.000496,120]
[321435762,1712190655041,-578.359478,0.000496,120]
[321435763,1712190655051,-229.92486,0.000496,120]
[321435764,1712190655061,-229.92486,0.000496,120]
[321435765,1712190655079,-151.0,0.000496,120]
[321435766,1712190655090,-857.332596,0.000496,30]
[321435767,1712190655101,-857.332596,0.000496,30]
[321435768,1712190655111,-151.0,0.000496,120]
[321435769,1712190655120,-151.0,0.000496,120]
[321435770,1712190655130,-151.0,0.000496,120]
[321435771,1712190655141,-160.100621,0.000496,120]
[321435772,1712190655153,-151.0,0.000496,120]
[321435773,1712190655164,-151.0,0.000496,120]
[321435774,1712190655175,-151.0,0.000496,120]
[321435775,1712190655186,-151.0,0.000496,7]
[321435776,1712190655196,-151.0,0.000496,120]
[321435777,1712190655207,-151.0,0.000496,120]
[321435778,1712190655217,-200.403341,0.000496,120]
[321435779,1712190655227,-200.403341,0.000496,120]
[321435780,1712190655238,-151.0,0.000496,120]
[321435781,1712190655249,-229.120981,0.000496,30]
[321435782,1712190655259,-229.120981,0.000496,30]
[321435783,1712190655270,-151.0,0.000496,120]
[321435784,1712190655282,-151.0,0.000496,120]
[321435785,1712190655293,-292.133939,0.000496,120]
[321435786,1712190655303,-292.133939,0.000496,120]
[321435787,1712190655314,-151.0,0.000496,120]
[321435788,1712190655324,-461.388181,0.000496,120]
[321435789,1712190655336,-461.388181,0.000496,120]
[321435790,1712190655347,-151.0,0.000496,120]
[321435791,1712190655358,-251.683093,0.000496,7]
[321435792,1712190655367,-251.683093,0.000496,7]
[321435793,1712190655378,-259.121772,0.000496,120]
[321435794,1712190655387,-162.522381,0.000496,120]
[321435795,1712190655398,-162.522381,0.000496,120]
[321435796,1712190655407,-259.121772,0.000496,120]
[321435797,1712190655418,-151.0,0.000496,120]
[321435798,1712190655428,-151.0,0.000496,120]
[321435799,1712190655439,-151.0,0.000496,120]
[321435800,1712190655450,-151.0,0.000496,120]
[321435801,1712190655461,-151.0,0.000496,120]
[321435802,1712190655471,-151.0,0.000496,120]
[321435803,1712190655481,-151.0,0.000496,120]
[321435804,1712190655491,-7916.67629144,0.00049642,48]
[321435805,1712190655502,-388.42808272,0.00049646,30]
[321435806,1712190655512,-388.42808272,0.00049669,30]
[321435807,1712190655523,-323.46,0.0004968,2]
[321435808,1712190655533,-203.19613583,0.00049687,30]
[321435809,1712190655544,-509.54232732,0.00049694,30]
[321435810,1712190655554,-509.54232732,0.00049698,30]
[321435811,1712190655565,-151.0,0.000497,120]
[321435812,1712190655575,-151.0,0.000497,120]
[321435813,1712190655586,-151.0,0.000497,120]
[321435814,1712190655596,-936.810647,0.000497,120]
[321435815,1712190655605,-322.885202,0.000497,120]
[321435816,1712190655616,-322.885202,0.000497,120]
[321435817,1712190655626,-151.0,0.000497,7]
[321435818,1712190655636,-602.12417404,0.0004971,30]
[321435819,1712190655646,-995.74,0.0004972,2]
[321435820,1712190655656,-152.0,0.00049742,8]
[321435821,1712190655666,-153.54975412,0.00049766,30]
[321435822,1712190655676,-153.63115965,0.00049767,30]
[321435823,1712190655686,-153.54975412,0.00049771,30]
[321435824,1712190655697,-155.40310942,0.0004979,30]
[321435825,1712190655708,-20767.71815497,0.000498,60]
[321435826,1712190655718,-151.0,0.000498,120]
[321435827,1712190655730,-256.68965,0.000498,120]
[321435828,1712190655742,-151.0,0.000498,120]
[321435829,1712190655753,-151.0,0.000498,60]
[321435830,1712190655764,-150.0,0.00049816,120]
[321435831,1712190655774,-291.67523411,0.00049817,30]
[321435832,1712190655784,-388.42808272,0.00049832,30]
[321435833,1712190655794,-198.6880857,0.00049833,30]
[321435834,1712190655805,-203.19613583,0.00049844,30]
[321435835,1712190655815,-163.47237622,0.00049852,30]
[321435836,1712190655827,-500.0,0.00049862,90]
[321435837,1712190655837,-900.0,0.00049862,90]
[321435838,1712190655846,-500.0,0.00049862,90]
[321435839,1712190655856,-151.0,0.00049867,2]
[321435840,1712190655866,-150.0,0.00049878,120]
[321435841,1712190655877,-151.29625457,0.00049881,30]
[321435842,1712190655887,-500.0,0.000499,10]
[321435843,1712190655898,-602.12417404,0.00049925,30]
[321435844,1712190655909,-157.33985921,0.00049926,30]
[321435845,1712190655919,-155.78714103,0.00049945,30]
[321435846,1712190655929,-159.96854777,0.00049949,30]
[321435847,1712190655939,-509.54232732,0.00049958,30]
[321435848,1712190655949,-197.38677701,0.00049958,30]
[321435849,1712190655960,-203.19613583,0.00049959,30]
[321435850,1712190655970,-153.63115965,0.00049967,30]
[321435851,1712190655980,-155.78714103,0.0004997,30]
[321435852,1712190655990,-154.04196447,0.00049981,30]
[321435853,1712190656001,-602.12417404,0.00049982,30]
[321435854,1712190656011,-200.0,0.0004999,90]
[321435855,1712190656020,-200.0,0.0004999,90]
[321435856,1712190656030,-549.53878118,0.00049998,120]
[321435857,1712190656040,-2606.33,0.0005,30]
[321435858,1712190656050,-14313.00991528,0.0005,120]
[321435859,1712190656060,-999.999999,0.0005,2]
[321435860,1712190656073,-308.44436322,0.0005,90]
[321435861,1712190656086,-429.26129912,0.0005,28]
[321435862,1712190656095,-27093.29378832,0.0005,4]
[321435863,1712190656105,-150.0,0.0005,27]
[321435864,1712190656115,-50466.74497159,0.0005,120]
[321435865,1712190656126,-817.20876623,0.0005,2]
[321435866,1712190656137,-3885.94492622,0.0005,2]
[321435867,1712190656147,-269.07,0.0005,120]
[321435868,1712190656158,-284.57782351,0.0005,45]
[321435869,1712190656169,-839.03450068,0.0005,2]
[321435870,1712190656180,-153.29,0.0005,30]
[321435871,1712190656190,-32017.84532244,0.0005,30]
[321435872,1712190656200,-1600.0,0.0005,21]
[321435873,1712190656211,-151.0,0.0005,120]
[321435874,1712190656221,-155.0,0.0005,2]
[321435875,1712190656231,-182.86803483,0.0005,120]
[321435876,1712190656241,-232.27042375,0.0005,30]
[321435877,1712190656251,-178.54868302,0.0005,12]
[321435878,1712190656261,-42181.38033145,0.0005,12]
[321435879,1712190656272,-42181.38033145,0.0005,12]
[321435880,1712190656282,-42181.38033145,0.0005,12]
[321435881,1712190656293,-42181.38033145,0.0005,12]
[321435882,1712190656304,-42181.38033145,0.0005,12]
[321435883,1712190656315,-42181.38033145,0.0005,12]
[321435884,1712190656325,-42181.38033145,0.0005,12]
[321435885,1712190656336,-42181.38033145,0.0005,12]
[321435886,1712190656346,-42181.38033145,0.0005,12]
[321435887,1712190656356,-42181.37933145,0.0005,12]
[321435888,1712190656366,-1034.22320023,0.0005,12]
[321435889,1712190656376,-30000.0,0.0005,120]
[321435890,1712190656386,-30000.0,0.0005,120]
[321435891,1712190656397,-30000.0,0.0005,120]
[321435892,1712190656408,-30225.33247851,0.0005,120]
[321435893,1712190656418,-151.0,0.0005,120]
[321435894,1712190656428,-151.0,0.0005,120]
[321435895,1712190656437,-151.0,0.0005,120]
[321435896,1712190656449,-208.230204,0.0005,120]
[321435897,1712190656460,-151.0,0.0005,120]
[321435898,1712190656471,-197.885248,0.0005,120]
[321435899,1712190656482,-151.0,0.0005,120]
[321435900,1712190656493,-151.0,0.0005,120]
[321435901,1712190656503,-151.0,0.0005,120]
[321435902,1712190656513,-151.0,0.0005,120]
[321435903,1712190656523,-151.0,0.0005,60]
[321435904,1712190656532,-151.0,0.0005,120]
[321435905,1712190656541,-151.0,0.0005,120]
[321435906,1712190656549,-290.802129,0.0005,120]
[321435907,1712190656558,-936.810647,0.0005,120]
[321435908,1712190656567,-322.885202,0.0005,120]
[321435909,1712190656578,-322.885202,0.0005,120]
[321435910,1712190656588,-151.0,0.0005,7]
[321435911,1712190656599,-151.53200899,0.0005,2]
[321435912,1712190656609,-2622.64739998,0.0005,30]
[321435913,1712190656619,-279.529622,0.0005,14]
[321435914,1712190656630,-279.529622,0.0005,14]
[321435915,1712190656640,-340.368361,0.0005,120]
[321435916,1712190656651,-340.368361,0.0005,120]
[321435917,1712190656662,-353.623815,0.0005,120]
[321435918,1712190656673,-353.623815,0.0005,120]
[321435919,1712190656684,-151.0,0.0005,120]
[321435920,1712190656694,-151.0,0.0005,120]
[321435921,1712190656706,-185.086166,0.0005,120]
[321435922,1712190656715,-185.086166,0.0005,120]
[321435923,1712190656725,-185.086166,0.0005,120]
[321435924,1712190656735,-185.086166,0.0005,120]
[321435925,1712190656745,-151.0,0.0005,120]
[321435926,1712190656755,-151.0,0.0005,120]
[321435927,1712190656765,-198.553883,0.0005,120]
[321435928,1712190656776,-198.553883,0.0005,120]
[321435929,1712190656787,-198.553883,0.0005,120]
[321435930,1712190656797,-198.553883,0.0005,120]
[321435931,1712190656806,-337.817331,0.0005,120]
[321435932,1712190656816,-337.817331,0.0005,120]
[321435933,1712190656829,-337.817331,0.0005,120]
[321435934,1712190656841,-337.817331,0.0005,120]
[321435935,1712190656852,-749.789279,0.0005,30]
[321435936,1712190656864,-749.789279,0.0005,30]
[321435937,1712190656874,-749.789279,0.0005,30]
[321435938,1712190656884,-749.789279,0.0005,30]
[321435939,1712190656895,-193.436429,0.0005,120]
[321435940,1712190656905,-193.436429,0.0005,120]
[321435941,1712190656917,-193.436429,0.0005,120]
[321435942,1712190656929,-193.436429,0.0005,120]
[321435943,1712190656941,-223.122363,0.0005,120]
[321435944,1712190656953,-223.122363,0.0005,120]
[321435945,1712190656964,-223.122363,0.0005,120]
[321435946,1712190656975,-223.122363,0.0005,120]
[321435947,1712190656986,-151.0,0.0005,120]
[321435948,1712190656997,-152.467629,0.0005,120]
[321435949,1712190657008,-151.0,0.0005,120]
[321435950,1712190657023,-151.0,0.0005,120]
[321435951,1712190657034,-360.206481,0.0005,120]
[321435952,1712190657045,-360.206481,0.0005,120]
[321435953,1712190657054,-360.206481,0.0005,120]
[321435954,1712190657065,-360.206481,0.0005,120]
[321435955,1712190657078,-200.0,0.0005,27]
[321435956,1712190657088,-288.132434,0.0005,120]
[321435957,1712190657098,-288.132434,0.0005,120]
[321435958,1712190657110,-288.132434,0.0005,120]
[321435959,1712190657120,-288.132434,0.0005,120]
[321435960,1712190657131,-151.0,0.0005,120]
[321435961,1712190657141,-195.062432,0.0005,120]
[321435962,1712190657152,-150.0,0.0005,10]
[321435963,1712190657164,-578.359478,0.0005,120]
[321435964,1712190657175,-578.359478,0.0005,120]
[321435965,1712190657184,-578.359478,0.0005,120]
[321435966,1712190657194,-578.359478,0.0005,120]
[321435967,1712190657204,-229.92486,0.0005,120]
[321435968,1712190657215,-229.92486,0.0005,120]
[321435969,1712190657225,-229.92486,0.0005,120]
[321435970,1712190657235,-229.92486,0.0005,120]
[321435971,1712190657246,-151.0,0.0005,120]
[321435972,1712190657258,-151.0,0.0005,120]
[321435973,1712190657269,-857.332596,0.0005,30]
[321435974,1712190657497,-857.332596,0.0005,30]
[321435975,1712190657507,-857.332596,0.0005,30]
[321435976,1712190657519,-857.332596,0.0005,30]
[321435977,1712190657530,-151.0,0.0005,120]
[321435978,1712190657543,-151.0,0.0005,120]
[321435979,1712190657553,-151.0,0.0005,120]
[321435980,1712190657563,-151.0,0.0005,120]
[321435981,1712190657572,-151.0,0.0005,120]
[321435982,1712190657582,-151.0,0.0005,120]
[321435983,1712190657591,-151.0,0.0005,120]
[321435984,1712190657601,-151.0,0.0005,120]
[321435985,1712190657611,-151.0,0.0005,120]
[321435986,1712190657622,-205.7986,0.0005,120]
[321435987,1712190657633,-151.0,0.0005,120]
[321435988,1712190657643,-151.0,0.0005,120]
[321435989,1712190657653,-151.0,0.0005,7]
[321435990,1712190657662,-151.0,0.0005,7]
[321435991,1712190657672,-151.0,0.0005,120]
[321435992,1712190657683,-151.0,0.0005,120]
[321435993,1712190657692,-152.774897,0.0005,120]
[321435994,1712190657702,-200.403341,0.0005,120]
[321435995,1712190657712,-200.403341,0.0005,120]
[321435996,1712190657724,-200.403341,0.0005,120]
[321435997,1712190657734,-151.0,0.0005,120]
[321435998,1712190657744,-200.403341,0.0005,120]
[321435999,1712190657754,-276.129782,0.0005,120]
[321436000,1712190657763,-229.120981,0.0005,30]
[321436001,1712190657774,-229.120981,0.0005,30]
[321436002,1712190657785,-229.120981,0.0005,30]
[321436003,1712190657795,-229.120981,0.0005,30]
[321436004,1712190657805,-151.0,0.0005,120]
[321436005,1712190657816,-151.0,0.0005,120]
[321436006,1712190657826,-151.0,0.0005,120]
[321436007,1712190657838,-169.928645,0.0005,120]
[321436008,1712190657847,-292.133939,0.0005,120]
[321436009,1712190657856,-292.133939,0.0005,120]
[321436010,1712190657865,-292.133939,0.0005,120]
[321436011,1712190657875,-292.133939,0.0005,120]
[321436012,1712190657885,-151.0,0.0005,120]
[321436013,1712190657895,-151.0,0.0005,120]
[321436014,1712190657905,-461.388181,0.0005,120]
[321436015,1712190657915,-461.388181,0.0005,120]
[321436016,1712190657925,-461.388181,0.0005,120]
[321436017,1712190657936,-461.388181,0.0005,120]
[321436018,1712190657945,-151.0,0.0005,120]
[321436019,1712190657958,-180.799472,0.0005,120]
[321436020,1712190657967,-251.683093,0.0005,7]
[321436021,1712190657978,-251.683093,0.0005,7]
[321436022,1712190657989,-251.683093,0.0005,7]
[321436023,1712190657999,-251.683093,0.0005,7]
[321436024,1712190658010,-200.0,0.0005,120]
[321436025,1712190658021,-500.0,0.0005,45]
[321436026,1712190658032,-259.121772,0.0005,120]
[321436027,1712190658041,-162.522381,0.0005,120]
[321436028,1712190658050,-259.121772,0.0005,120]
[321436029,1712190658063,-162.522381,0.0005,120]
[321436030,1712190658073,-162.522381,0.0005,120]
[321436031,1712190658083,-259.121772,0.0005,120]
[321436032,1712190658092,-162.522381,0.0005,120]
[321436033,1712190658102,-259.121772,0.0005,120]
[321436034,1712190658113,-151.0,0.0005,120]
[321436035,1712190658122,-151.0,0.0005,120]
[321436036,1712190658132,-151.0,0.0005,120]
[321436037,1712190658142,-151.0,0.0005,120]
[321436038,1712190658152,-151.0,0.0005,120]
[321436039,1712190658162,-151.0,0.0005,120]
[321436040,1712190658171,-151.0,0.0005,120]
[321436041,1712190658181,-151.0,0.0005,120]
[321436042,1712190658190,-151.0,0.0005,120]
[321436043,1712190658200,-151.0,0.0005,120]
[321436044,1712190658210,-151.0,0.0005,120]
[321436045,1712190658219,-151.0,0.0005,120]
[321436046,1712190658230,-151.0,0.0005,120]
[321436047,1712190658240,-152.475414,0.0005,120]
[321436048,1712190658249,-291.67523411,0.00050019,60]
[321436049,1712190658259,-190.53034933,0.00050024,60]
[321436050,1712190658269,-230.3301978,0.00050052,14]
[321436051,1712190658278,-230.3301978,0.00050052,14]
[321436052,1712190658288,-230.3301978,0.00050052,14]
[321436053,1712190658298,-230.3301978,0.00050052,14]
[321436054,1712190658308,-230.3301978,0.00050052,14]
[321436055,1712190658317,-230.3301978,0.00050052,14]
[321436056,1712190658326,-230.3301978,0.00050052,14]
[321436057,1712190658338,-230.3301978,0.00050052,14]
[321436058,1712190658347,-230.3301978,0.00050052,14]
[321436059,1712190658357,-230.3301978,0.00050052,14]
[321436060,1712190658367,-230.3301978,0.00050052,14]
[321436061,1712190658377,-230.3301978,0.00050052,14]
[321436062,1712190658387,-230.3301978,0.00050052,14]